bitfinex-derivatives/quotes_BNBF0:USTF0_20250329
["timestamp","ask_amount","ask_price","bid_price","bid_amount"]
[1743209381604,1.2166998,622.53,622.03,4.333]
[1743209381803,1.2166998,622.52,622.03,4.333]
[1743209382002,1.2166998,622.51,622.03,4.333]
[1743209382303,1.2166998,622.5,622.03,4.333]
[1743209382503,1.2166998,622.49,622.03,4.333]
[1743209382697,1.2166998,622.48,622.03,4.333]
[1743209382901,1.2166998,622.47,622.03,4.333]
[1743209383098,1.2166998,622.46,622.03,4.333]
[1743209383298,1.2166998,622.45,622.03,2.587]
[1743209383499,1.2166998,622.44,622.03,2.587]
[1743209383698,1.2166998,622.43,622.03,2.587]
[1743209383901,1.2166998,622.42,622.03,2.587]
[1743209384103,1.2166998,622.41,622.03,2.587]
[1743209384406,1.2166998,622.4,622.03,2.587]
[1743209384605,1.2166998,622.39,622.03,2.587]
[1743209384802,1.2166998,622.38,622.03,2.587]
[1743209385005,0.27971016,622.52,622.03,2.587]
[1743209385401,1.21639931,622.51,622.03,2.587]
[1743209385607,1.21639931,622.5,622.03,2.587]
[1743209385808,0.27971016,622.52,622.03,2.587]
[1743209385809,1.21639931,622.49,622.03,2.587]
[1743209386008,1.21639931,622.48,622.03,4.516]
[1743209386201,1.21639931,622.47,622.03,4.516]
[1743209386405,1.21639931,622.46,622.03,4.516]
[1743209386607,1.21639931,622.45,622.03,4.516]
[1743209386806,1.21639931,622.44,622.03,4.516]
[1743209387007,1.21639931,622.43,622.03,4.516]
[1743209387206,1.21636918,622.42,622.03,4.516]
[1743209387507,1.21636918,622.41,622.03,4.516]
[1743209387701,1.21636918,622.4,622.03,4.516]
[1743209387904,1.21636918,622.39,622.03,4.516]
[1743209388105,1.21636918,622.38,622.03,4.516]
[1743209388308,0.27972478,622.44,622.03,4.516]
[1743209388507,1.21635022,622.43,622.03,3.717]
[1743209388704,1.21635022,622.42,622.03,3.717]
[1743209388908,1.21635022,622.41,622.03,3.717]
[1743209389204,1.21635022,622.4,622.03,3.717]
[1743209389408,1.21635022,622.39,622.03,3.717]
[1743209389608,1.21635022,622.38,622.03,3.717]
[1743209389909,2.458772,623.91,622.03,3.717]
[1743209390109,1.51163239,623.9,622.03,3.717]
[1743209390308,1.51163239,623.89,622.03,3.717]
[1743209390506,1.51163239,623.88,622.03,3.717]
[1743209390701,1.51163239,623.87,622.03,3.717]
[1743209390903,1.51163239,623.86,622.03,3.717]
[1743209391103,1.51163239,623.85,622.03,3.717]
[1743209391408,1.51163239,623.84,622.03,3.717]
[1743209391615,1.51163239,623.83,622.03,3.717]
[1743209391910,2.458772,623.81,622.03,3.717]
[1743209392210,1.51163239,623.8,622.03,3.717]
[1743209392411,1.51163239,623.79,622.03,3.717]
[1743209392609,1.51163239,623.78,622.03,3.717]
[1743209392811,1.21634454,623.77,622.03,3.717]
[1743209393007,1.21634454,623.76,622.03,3.717]
[1743209393211,1.51163239,623.75,622.03,3.717]
[1743209393413,1.51163239,623.74,622.03,3.717]
[1743209393614,1.51163239,623.73,622.03,3.717]
[1743209393813,2.458772,623.69,622.03,3.717]
[1743209394108,1.51163239,623.68,622.03,3.717]
[1743209394311,1.51163239,623.67,622.03,3.717]
[1743209394515,1.51163239,623.66,622.03,3.717]
[1743209394716,1.51163239,623.65,622.03,3.717]
[1743209394916,1.51163239,623.64,622.03,3.717]
[1743209395109,1.51163239,623.63,622.03,3.717]
[1743209395310,1.51163239,623.62,622.03,3.717]
[1743209395510,1.51163239,623.61,622.03,3.717]
[1743209395714,1.51163239,623.6,622.03,3.717]
[1743209395917,1.51163239,623.59,622.03,3.717]
[1743209396117,1.51163239,623.58,622.03,3.717]
[1743209396313,1.51163239,623.57,622.03,3.717]
[1743209396520,1.51163239,623.56,622.03,3.717]
[1743209396823,1.51163239,623.55,622.03,3.717]
[1743209397013,1.51163239,623.54,622.03,3.717]
[1743209397216,1.51163239,623.53,622.03,3.717]
[1743209397418,1.51163239,623.52,622.03,3.717]
[1743209397617,1.51163239,623.51,622.03,3.717]
[1743209397817,1.51163239,623.5,622.03,3.717]
[1743209398014,1.21634454,623.49,622.03,3.717]
[1743209398216,1.21634454,623.48,622.03,3.717]
[1743209398414,1.51163239,623.47,622.03,3.717]
[1743209398613,1.51163239,623.46,622.03,3.717]
[1743209398818,1.51163239,623.45,622.03,3.717]
[1743209399119,1.51163239,623.44,622.03,3.717]
[1743209399319,1.51163239,623.43,622.03,3.717]
[1743209399522,1.51163239,623.42,622.03,3.717]
[1743209399721,1.51163239,623.41,622.03,3.717]
[1743209399915,1.51163239,623.4,622.03,3.717]
[1743209400115,1.51163239,623.39,622.03,3.717]
[1743209400314,1.51163239,623.38,622.03,3.717]
[1743209400623,0.32084188,623.36,622.03,3.717]
[1743209400822,1.51127345,623.35,622.03,3.717]
[1743209401018,0.32085733,623.33,622.03,3.717]
[1743209401321,1.51127345,623.32,622.03,3.717]
[1743209401536,1.51127345,623.31,622.03,3.717]
[1743209401820,1.83214622,623.3,622.03,3.717]
[1743209402022,0.32088307,623.28,622.03,3.717]
[1743209402322,1.51127345,623.27,622.03,3.717]
[1743209402522,1.51127345,623.26,622.03,3.717]
[1743209402721,0.32090366,623.24,622.03,3.717]
[1743209403021,1.51127345,623.23,622.03,3.717]
[1743209403222,0.32091911,623.21,622.03,3.717]
[1743209403417,1.51127345,623.2,622.03,3.717]
[1743209403723,0.32093456,623.18,622.03,3.717]
[1743209403921,1.51127345,623.17,622.03,3.717]
[1743209404223,1.51127345,623.16,622.03,3.717]
[1743209404422,1.51127345,623.15,622.03,3.717]
[1743209404623,1.83222861,623.14,622.03,3.717]
[1743209404817,1.83223376,623.13,622.03,3.717]
[1743209405017,1.83223891,623.12,622.03,3.717]
[1743209405216,1.83224406,623.11,622.03,3.717]
[1743209405421,1.83224921,623.1,622.03,3.717]
[1743209405618,1.53696651,623.09,622.03,4.478]
[1743209405819,1.53697166,623.08,622.03,4.478]
[1743209406023,1.53697682,623.07,622.03,4.478]
[1743209406225,1.53698197,623.06,622.03,4.478]
[1743209406426,1.53698712,623.05,622.03,4.478]
[1743209406620,1.53699227,623.04,622.03,4.478]
[1743209406822,1.53699742,623.03,622.03,4.478]
[1743209407021,1.53700258,623.02,622.03,4.478]
[1743209407222,1.53700773,623.01,622.03,4.478]
[1743209407526,1.53701288,623.0,622.03,4.478]
[1743209407723,1.53701804,622.99,622.03,4.478]
[1743209407921,1.53702319,622.98,622.03,4.478]
[1743209408121,1.53702834,622.97,622.03,4.478]
[1743209408326,1.2159856,622.96,622.03,4.478]
[1743209408626,1.2159856,622.95,622.03,4.478]
[1743209408822,1.2159856,622.94,622.03,4.478]
[1743209409023,1.2159856,622.93,622.03,4.478]
[1743209409228,1.2159856,622.92,622.03,4.478]
[1743209409434,1.2159856,622.91,622.03,4.478]
[1743209409730,1.2159856,622.9,622.03,4.478]
[1743209409930,1.2159856,622.89,622.03,4.478]
[1743209410130,1.2159856,622.88,622.03,4.478]
[1743209410331,1.2159856,622.87,622.03,4.478]
[1743209410525,1.2159856,622.86,622.03,4.478]
[1743209410724,1.2159856,622.85,622.03,4.478]
[1743209411030,1.2159856,622.84,622.03,4.478]
[1743209411231,1.2159856,622.83,622.03,4.478]
[1743209411424,1.2159856,622.82,622.03,4.478]
[1743209411627,1.21525225,622.81,622.03,4.478]
[1743209411830,1.21525225,622.8,622.03,4.478]
[1743209412125,1.21503662,622.79,622.03,4.478]
[1743209412331,1.21503662,622.78,622.03,4.478]
[1743209412526,1.21503662,622.77,622.03,4.478]
[1743209412732,1.21503662,622.76,622.03,4.478]
[1743209413027,1.21503662,622.75,622.03,4.478]
[1743209413230,1.21503662,622.74,622.03,4.478]
[1743209413430,1.21503662,622.73,622.03,4.478]
[1743209413634,1.21503662,622.72,622.03,4.478]
[1743209413827,1.21503662,622.71,622.03,4.478]
[1743209414025,1.21503662,622.7,622.03,4.478]
[1743209414230,1.21503662,622.69,622.03,4.478]
[1743209414431,1.21503662,622.68,622.03,4.478]
[1743209414628,1.21503662,622.67,622.03,4.478]
[1743209414823,1.21503662,622.66,622.03,4.478]
[1743209415027,1.21503662,622.65,622.03,4.478]
[1743209415226,1.21503662,622.64,622.03,4.478]
[1743209415428,1.21503662,622.63,622.03,4.478]
[1743209415631,1.21503662,622.62,622.03,4.478]
[1743209415834,1.21503662,622.61,622.03,4.478]
[1743209416033,1.21456104,622.6,622.03,4.478]
[1743209416334,1.21456104,622.59,622.03,4.478]
[1743209416633,1.21456104,622.58,622.03,4.478]
[1743209416833,1.21456104,622.57,622.03,4.478]
[1743209417133,1.21456104,622.56,622.03,4.478]
[1743209417334,1.21456104,622.55,622.03,4.478]
[1743209417633,1.21456104,622.54,622.03,4.478]
[1743209417828,1.21456104,622.53,622.03,4.478]
[1743209418031,1.21425221,622.52,622.03,4.478]
[1743209418228,1.21425221,622.51,622.03,4.478]
[1743209418529,1.21425221,622.5,622.03,4.478]
[1743209418734,1.21425221,622.49,622.03,4.478]
[1743209419034,1.21425221,622.48,622.03,4.478]
[1743209419234,1.21425221,622.47,622.03,4.478]
[1743209419437,1.21425221,622.46,622.03,4.478]
[1743209419736,0.27976301,622.53,622.03,0.761]
[1743209419737,1.21425221,622.45,622.03,0.761]
[1743209419937,1.21425221,622.44,622.03,0.761]
[1743209420237,1.21425221,622.43,622.03,0.761]
[1743209420434,1.21425221,622.42,622.03,0.761]
[1743209420634,1.21425221,622.41,622.03,0.761]
[1743209420830,1.21425221,622.4,622.03,0.761]
[1743209421030,1.21425221,622.39,622.03,0.761]
[1743209421237,1.21425221,622.38,622.03,0.761]
[1743209421428,1.21425221,622.37,622.03,0.761]
[1743209421632,1.21425221,622.36,622.03,0.761]
[1743209421834,1.21425221,622.35,622.03,0.761]
[1743209422035,1.21425221,622.34,622.03,0.761]
[1743209422234,1.21425221,622.33,622.03,0.761]
[1743209422434,1.21425221,622.32,622.03,0.761]
[1743209422636,1.21425221,622.31,622.03,0.761]
[1743209422836,0.27977987,622.4,622.03,0.761]
[1743209422837,1.21425221,622.3,622.03,0.761]
[1743209423038,1.21425221,622.29,622.03,0.761]
[1743209423332,1.21425221,622.28,622.03,0.761]
[1743209423531,0.27979112,622.3,622.03,0.761]
[1743209423737,1.21315196,622.29,622.03,0.761]
[1743209423934,1.21315231,622.28,622.03,0.761]
[1743209424134,0.27979112,622.3,622.03,0.761]
[1743209424334,1.21313995,622.29,622.03,0.761]
[1743209424636,0.27979112,622.3,622.03,0.761]
[1743209424837,1.21313866,622.29,622.03,0.761]
[1743209425032,0.27979112,622.3,622.03,0.761]
[1743209425231,1.21312902,622.29,622.03,0.761]
[1743209425436,0.27979112,622.3,622.03,0.761]
[1743209425634,1.21311224,622.29,622.03,0.761]
[1743209425938,0.32104274,622.97,622.03,0.761]
[1743209426135,1.21311305,622.96,622.03,0.761]
[1743209426336,1.21311305,622.95,622.03,0.761]
[1743209426536,1.21311305,622.94,622.03,0.761]
[1743209426737,1.21311305,622.93,622.03,0.761]
[1743209426932,1.21311305,622.92,622.03,0.761]
[1743209427239,1.21311305,622.91,622.03,0.761]
[1743209427439,1.21311305,622.9,622.03,0.761]
[1743209427638,1.21311305,622.89,622.03,0.761]
[1743209427837,1.21311305,622.88,622.03,0.761]
[1743209428035,1.21311305,622.87,622.03,0.761]
[1743209428234,1.21311305,622.86,622.03,0.761]
[1743209428438,1.21311305,622.85,622.03,0.761]
[1743209428639,1.21311305,622.84,622.03,0.761]
[1743209428838,1.21311305,622.83,622.03,0.761]
[1743209429037,0.32104274,622.97,622.03,0.761]
[1743209429038,1.21311305,622.82,622.03,0.761]
[1743209429238,1.21311305,622.81,622.03,0.761]
[1743209429436,1.21311305,622.8,622.03,0.761]
[1743209429742,1.21311305,622.79,622.03,0.761]
[1743209429938,1.21311305,622.78,622.03,0.761]
[1743209430135,1.21311305,622.77,622.03,0.761]
[1743209430441,1.21311305,622.76,622.03,0.761]
[1743209430642,1.21311305,622.75,622.03,0.761]
[1743209430943,1.21311305,622.74,622.03,0.761]
[1743209431139,1.21311305,622.73,622.03,0.761]
[1743209431439,1.21311305,622.72,622.03,0.761]
[1743209431640,1.21310884,622.71,622.03,0.761]
[1743209431837,1.21310884,622.7,622.03,0.761]
[1743209432033,1.21310884,622.69,622.03,0.761]
[1743209432240,1.21310884,622.68,622.03,0.761]
[1743209432441,1.21310884,622.67,622.03,0.761]
[1743209432633,1.21310884,622.66,622.03,0.761]
[1743209432834,1.21310884,622.65,622.03,0.761]
[1743209433035,1.21310884,622.64,622.03,0.761]
[1743209433240,1.21310884,622.63,622.03,0.761]
[1743209433441,1.21310884,622.62,622.03,0.761]
[1743209433642,1.21326893,622.61,622.03,0.761]
[1743209433842,1.21326893,622.6,622.03,0.761]
[1743209434043,1.21326893,622.59,622.03,0.761]
[1743209434238,1.21326893,622.58,622.03,0.761]
[1743209434440,1.21326893,622.57,622.03,0.761]
[1743209434640,1.21326893,622.56,622.03,0.761]
[1743209434836,1.21326893,622.55,622.03,0.761]
[1743209435038,1.21326893,622.54,622.03,0.761]
[1743209435241,1.21326893,622.53,622.03,0.761]
[1743209435444,0.27973152,622.65,622.03,0.761]
[1743209435644,1.2133256,622.64,622.03,0.761]
[1743209435847,0.27973152,622.65,622.03,0.761]
[1743209435848,1.2133256,622.63,622.03,0.761]
[1743209436046,1.2133256,622.62,622.03,0.761]
[1743209436246,1.2133256,622.61,622.03,0.761]
[1743209436447,1.2133256,622.6,622.03,0.761]
[1743209436744,1.2133256,622.59,622.03,0.761]
[1743209437046,1.2133256,622.58,622.03,1.626]
[1743209437247,1.21338555,622.57,622.03,1.626]
[1743209437447,1.21338555,622.56,622.03,1.626]
[1743209437747,1.21338555,622.55,622.03,1.626]
[1743209437941,1.21338555,622.54,622.03,1.626]
[1743209438143,1.21338555,622.53,622.03,1.626]
[1743209438343,1.21338555,622.52,622.03,1.626]
[1743209438545,1.21338555,622.51,622.03,1.626]
[1743209438749,1.21338555,622.5,622.03,1.626]
[1743209438950,1.21347084,622.49,622.03,1.626]
[1743209439245,1.21347084,622.48,622.03,1.626]
[1743209439450,1.21347084,622.47,622.03,1.626]
[1743209439652,1.21347084,622.46,622.03,1.626]
[1743209439851,1.21347084,622.45,622.03,1.626]
[1743209440052,1.21347084,622.44,622.03,0.865]
[1743209440246,1.21347084,622.43,622.03,0.865]
[1743209440450,1.21347084,622.42,622.03,0.865]
[1743209440655,1.21347084,622.41,622.03,0.865]
[1743209440953,1.21347084,622.4,622.03,0.865]
[1743209441156,1.21347084,622.39,622.03,0.865]
[1743209441352,1.21347084,622.38,622.03,0.865]
[1743209441552,1.21347084,622.37,622.03,0.865]
[1743209441752,1.21347084,622.36,622.03,0.865]
[1743209441955,1.21347084,622.35,622.03,0.865]
[1743209442154,1.21347084,622.34,622.03,0.865]
[1743209442355,1.21347084,622.33,622.03,0.865]
[1743209442556,1.21347084,622.32,622.03,0.865]
[1743209442754,1.21347084,622.31,622.03,0.865]
[1743209442950,1.21347084,622.3,622.03,0.865]
[1743209443156,1.21347084,622.29,622.03,0.865]
[1743209443350,1.21347084,622.28,622.03,0.865]
[1743209443553,0.27976975,622.35,622.03,0.865]
[1743209443856,1.21385216,622.34,622.03,0.865]
[1743209444048,1.21385216,622.33,622.03,0.865]
[1743209444354,1.21385216,622.32,622.03,0.865]
[1743209444554,1.21385216,622.31,622.03,0.865]
[1743209444755,1.21385216,622.3,622.03,0.865]
[1743209444951,1.21385216,622.29,622.03,0.865]
[1743209445149,1.21385216,622.28,622.03,0.865]
[1743209445351,1.21385216,622.27,622.03,0.865]
[1743209445659,1.21385216,622.26,622.03,0.865]
[1743209445856,0.27976975,622.35,622.03,0.865]
[1743209446156,1.21407788,622.34,622.03,0.865]
[1743209446356,1.21407788,622.33,622.03,0.865]
[1743209446556,1.21407788,622.32,622.03,0.865]
[1743209446761,1.21407788,622.31,622.03,0.865]
[1743209446958,1.21407788,622.3,622.03,0.865]
[1743209447154,1.21407788,622.29,622.03,0.865]
[1743209447354,1.21407788,622.28,622.03,0.865]
[1743209447656,1.21407788,622.27,622.03,0.865]
[1743209447857,0.32104274,622.97,622.03,0.865]
[1743209447858,1.21407788,622.26,622.03,0.865]
[1743209448058,1.21407788,622.25,622.03,0.865]
[1743209448259,1.21407788,622.24,622.03,0.865]
[1743209448460,1.21407788,622.23,622.03,0.865]
[1743209448656,1.21407788,622.22,622.03,0.865]
[1743209448856,1.21407788,622.21,622.03,0.865]
[1743209449053,1.21407788,622.2,621.84,1.959]
[1743209449258,1.21407788,622.19,621.84,1.959]
[1743209449460,1.21407788,622.18,621.84,1.959]
[1743209449758,0.27980462,622.26,621.84,1.959]
[1743209449958,1.21456623,622.25,621.84,1.959]
[1743209450154,1.21456623,622.24,621.84,1.959]
[1743209450356,1.21456623,622.23,621.84,1.959]
[1743209450556,1.21456623,622.22,621.84,1.093]
[1743209450758,1.21456623,622.21,621.84,1.093]
[1743209451062,1.21456623,622.2,621.84,1.093]
[1743209451253,1.21456623,622.19,621.84,1.093]
[1743209451558,1.21456623,622.18,621.84,1.093]
[1743209451759,1.21456623,622.17,621.84,1.093]
[1743209451956,0.27983274,622.2,621.84,1.093]
[1743209452156,1.21475997,622.19,621.84,1.093]
[1743209452461,1.21475997,622.18,621.84,1.093]
[1743209452760,1.21475997,622.17,621.84,1.093]
[1743209452961,0.32104274,622.97,621.84,1.093]
[1743209453263,1.51029345,622.96,621.84,1.093]
[1743209453461,1.8313465,622.95,621.84,1.093]
[1743209453661,1.83135165,622.94,621.84,1.093]
[1743209453959,1.51029345,622.93,621.84,1.093]
[1743209454161,1.83136196,622.92,621.84,1.093]
[1743209454362,1.51029345,622.91,621.85,1.117]
[1743209454558,1.83137227,622.9,621.85,1.117]
[1743209454761,1.83137742,622.89,621.85,1.117]
[1743209455061,1.53597104,622.88,621.85,1.117]
[1743209455260,1.21488191,622.87,621.85,1.117]
[1743209455461,1.21488191,622.86,621.85,1.117]
[1743209455660,1.21488191,622.85,621.85,1.117]
[1743209455955,1.21488191,622.84,621.85,1.117]
[1743209456162,1.21488191,622.83,621.85,1.117]
[1743209456361,1.21488191,622.82,621.85,1.117]
[1743209456668,1.21488191,622.81,621.85,1.117]
[1743209456867,1.21488191,622.8,621.85,1.117]
[1743209457167,1.21488191,622.79,621.85,1.117]
[1743209457364,1.21488191,622.78,621.85,1.117]
[1743209457564,1.21488191,622.77,621.85,1.117]
[1743209457767,1.21488191,622.76,621.85,1.117]
[1743209457962,1.21488191,622.75,621.85,1.117]
[1743209458161,0.32108913,622.88,621.85,1.117]
[1743209458367,1.215551,622.87,621.85,1.117]
[1743209458565,1.215551,622.86,621.85,1.117]
[1743209458765,1.215551,622.85,621.85,1.117]
[1743209458966,1.215551,622.84,621.85,1.117]
[1743209459162,1.215551,622.83,621.85,1.117]
[1743209459465,1.215551,622.82,621.85,1.117]
[1743209459673,1.215551,622.81,621.85,1.117]
[1743209459873,1.215551,622.8,621.85,1.117]
[1743209460173,1.215551,622.79,621.85,1.117]
[1743209460374,1.215551,622.78,621.85,1.117]
[1743209460574,1.215551,622.77,621.85,1.117]
[1743209460874,1.21561323,622.76,621.85,1.117]
[1743209461069,1.21561323,622.75,621.85,1.117]
[1743209461274,1.21561323,622.74,621.85,1.117]
[1743209461475,1.21561323,622.73,621.85,1.117]
[1743209461683,1.21561323,622.72,621.85,1.117]
[1743209461878,1.21561323,622.71,621.85,1.117]
[1743209462074,1.21561323,622.7,621.85,1.117]
[1743209462274,1.21561323,622.69,621.85,1.117]
[1743209462474,1.21561323,622.68,621.85,1.117]
[1743209462678,1.21561323,622.67,621.85,1.117]
[1743209462871,1.21561323,622.66,621.85,1.117]
[1743209463074,1.21561323,622.65,621.85,1.117]
[1743209463271,1.21561323,622.64,621.85,1.117]
[1743209463475,1.21575225,622.63,621.86,0.909]
[1743209463676,1.21575225,622.62,621.86,0.909]
[1743209463873,1.21575225,622.61,621.86,0.909]
[1743209464076,1.21575225,622.6,621.86,0.909]
[1743209464278,1.21575225,622.59,621.86,0.909]
[1743209464477,1.21575225,622.58,621.86,0.909]
[1743209464678,1.21575225,622.57,621.86,0.909]
[1743209464979,1.21575225,622.56,621.86,0.909]
[1743209465178,1.21575225,622.55,621.86,0.909]
[1743209465378,1.21575225,622.54,621.86,0.909]
[1743209465673,1.21575225,622.53,621.86,0.909]
[1743209465878,1.21575225,622.52,621.86,0.909]
[1743209466074,1.21575225,622.51,621.86,0.909]
[1743209466278,1.21575225,622.5,621.86,0.909]
[1743209466479,1.21575225,622.49,621.86,0.909]
[1743209466677,1.21575225,622.48,621.86,0.909]
[1743209466875,1.21575225,622.47,621.86,0.909]
[1743209467076,1.21575225,622.46,621.86,0.909]
[1743209467273,1.21575225,622.45,621.86,0.909]
[1743209467479,1.21575225,622.44,621.86,0.909]
[1743209467679,1.21575225,622.43,621.86,0.909]
[1743209467977,1.21575225,622.42,621.86,0.909]
[1743209468181,1.21575225,622.41,621.86,0.909]
[1743209468481,1.21575225,622.4,621.86,0.909]
[1743209468681,1.21575225,622.39,621.86,0.909]
[1743209468881,1.21575225,622.38,621.86,0.909]
[1743209469083,0.279781,622.56,621.86,0.909]
[1743209469084,1.21575225,622.37,621.86,0.909]
[1743209469283,1.21623771,622.36,621.86,0.909]
[1743209469481,1.21623771,622.35,621.86,0.909]
[1743209469680,1.21623745,622.34,621.86,0.909]
[1743209469877,1.21623745,622.33,621.86,0.909]
[1743209470083,1.21623745,622.32,621.86,0.909]
[1743209470283,1.21623745,622.31,621.86,0.909]
[1743209470476,1.21623745,622.3,621.86,0.909]
[1743209470683,1.21623745,622.29,621.86,0.909]
[1743209470879,1.21623745,622.28,621.86,0.909]
[1743209471081,1.21623745,622.27,621.86,0.909]
[1743209471278,1.21633663,622.26,621.86,0.909]
[1743209471487,0.279781,622.56,621.86,0.909]
[1743209471488,1.21633663,622.25,621.86,0.909]
[1743209471785,0.279781,622.56,621.86,0.909]
[1743209471786,1.21633663,622.24,621.86,0.909]
[1743209472083,1.21633663,622.23,621.86,0.909]
[1743209472285,1.21633663,622.22,621.86,0.909]
[1743209472587,1.21633663,622.21,621.86,0.909]
[1743209472883,1.21633663,622.2,621.86,0.909]
[1743209473085,1.21633663,622.19,621.86,0.909]
[1743209473384,1.21633663,622.18,621.86,0.909]
[1743209473584,0.279781,622.56,621.86,0.909]
[1743209473585,1.21633663,622.17,621.86,0.909]
[1743209473884,1.21633663,622.16,621.86,0.909]
[1743209474077,1.21633663,622.15,621.86,0.909]
[1743209474277,0.32108913,622.88,621.86,0.909]
[1743209474278,1.21633663,622.14,621.86,0.909]
[1743209474584,1.21633663,622.13,621.86,0.909]
[1743209474784,1.21633663,622.12,621.86,0.909]
[1743209474984,1.21633663,622.11,621.86,0.909]
[1743209475185,0.27983499,622.18,621.86,0.909]
[1743209475385,1.21619028,622.17,621.86,0.909]
[1743209475578,1.21619028,622.16,621.86,0.909]
[1743209475782,1.21619028,622.15,621.86,0.909]
[1743209475979,1.21619028,622.14,621.86,0.909]
[1743209476283,1.21619028,622.13,621.86,0.909]
[1743209476485,1.21619028,622.12,621.86,0.909]
[1743209476688,1.21619028,622.11,621.86,0.909]
[1743209476883,0.27983499,622.18,621.86,0.909]
[1743209477186,0.32108913,622.88,621.86,0.909]
[1743209477386,1.21613668,622.87,621.86,0.909]
[1743209477684,1.53723612,622.86,621.87,0.752]
[1743209477985,1.53724127,622.85,621.87,0.752]
[1743209478178,1.53724643,622.84,621.87,0.752]
[1743209478382,1.53725159,622.83,621.87,0.752]
[1743209478684,1.53725674,622.82,621.87,0.752]
[1743209478884,1.21613668,622.81,621.87,0.752]
[1743209479078,1.21613668,622.8,621.87,0.752]
[1743209479280,1.21613668,622.79,621.87,0.752]
[1743209479485,1.21613668,622.78,621.87,0.752]
[1743209479787,1.21613668,622.77,621.87,0.752]
[1743209480080,1.21613668,622.76,621.87,0.752]
[1743209480281,1.21613668,622.75,621.87,0.752]
[1743209480587,1.21613668,622.74,621.87,0.752]
[1743209480780,1.21613668,622.73,621.87,0.752]
[1743209480983,1.21613668,622.72,621.87,0.752]
[1743209481180,1.21613668,622.71,621.87,0.752]
[1743209481383,1.21613668,622.7,621.87,0.752]
[1743209481582,1.21613668,622.69,621.87,0.752]
[1743209481779,1.21613668,622.68,621.87,0.752]
[1743209482085,1.21613668,622.67,621.87,0.752]
[1743209482285,1.21613668,622.66,621.87,0.752]
[1743209482585,1.21613668,622.65,621.87,0.752]
[1743209482786,1.21613668,622.64,621.87,0.752]
[1743209483084,1.21613668,622.63,621.87,0.752]
[1743209483286,1.21613668,622.62,621.87,0.752]
[1743209483586,1.21613668,622.61,621.87,0.752]
[1743209483785,1.21613668,622.6,621.87,0.752]
[1743209483987,1.21613668,622.59,621.88,0.832]
[1743209484188,1.21613668,622.58,621.88,0.832]
[1743209484388,1.21613668,622.57,621.88,0.832]
[1743209484589,1.21613668,622.56,621.88,0.832]
[1743209484887,1.21613668,622.55,621.88,0.832]
[1743209485087,1.21613668,622.54,621.88,0.832]
[1743209485287,1.21613668,622.53,621.88,0.832]
[1743209485485,1.21613668,622.52,621.88,0.832]
[1743209485680,1.21613668,622.51,621.88,0.832]
[1743209485885,1.21613668,622.5,621.88,0.832]
[1743209486083,1.21613668,622.49,621.88,0.832]
[1743209486286,0.32112006,622.82,621.88,0.832]
[1743209486287,1.21613668,622.48,621.88,0.832]
[1743209486588,1.21613668,622.47,621.88,0.832]
[1743209486783,1.21613668,622.46,621.88,0.832]
[1743209486983,1.21613668,622.45,621.88,0.832]
[1743209487184,1.21596012,622.44,621.88,0.832]
[1743209487386,1.21596012,622.43,621.88,0.832]
[1743209487589,1.21596012,622.42,621.88,0.832]
[1743209487788,0.27980012,622.45,621.88,0.832]
[1743209487789,1.21596012,622.41,621.88,0.832]
[1743209487989,1.21596012,622.4,621.88,0.832]